Cogmind - Beta 14 *** ADVENTURER MODE // 2025.03.07 @ 12:43:19 Player: Bingus Khan Result: Destroyed by as-49481 with Assembled Maul Performance ------------- Evolutions (0) 0 Regions Visited (2) 400 Robots Destroyed (2) 10 Value Destroyed (106) 106 Prototype IDs (0) 0 Alien Tech Used (0) 0 Bonus (0) 0 TOTAL SCORE: 516 Bonus ------- None Cogmind --------- Core Integrity 0/250 Matter 285/300 Energy 90/125 System Corruption 18% Temperature Cool (0) Movement Core (50) Location -10/Mines Parts ------- > --- POWER (1) -------- Light Ion Engine > --- PROPULSION (2) --- (None) > --- UTILITY (2) ------ (None) > --- WEAPON (2) ------- (None) > --- INVENTORY (5) ---- Light Ion Engine Compact Wheel Compact Wheel Peak State ------------ > --- POWER ------------ Light Ion Engine > --- PROPULSION ------- Compact Wheel Compact Wheel > --- UTILITY ---------- Small Storage Unit Tractor Beam > --- WEAPON ----------- Light Assault Rifle Mini Grenade Launcher > --- INVENTORY -------- Compact Wheel Compact Wheel [Rating: 8] Favorites ----------- Power Ion Engine Engine Ion Engine Propulsion Light Treads Treads Light Treads Wheel Compact Wheel Utility Small Storage Unit Device Tractor Beam Storage Small Storage Unit Weapon Light Assault Rifle Ballistic Gun Light Assault Rifle Launcher Mini Grenade Launcher Special Melee Weapon Datajack Build | -11 -10 -10 ------- Run | Yrd Mat Min Slots Evolved . | . . . Power . | . . . Propulsion . | . . . Utility . | . . . Weapon . | . . . Parts Attached 18 | 6 1 11 Power 4 | 1 . 3 Engine 4 | 1 . 3 Core . | . . . Reactor . | . . . Propulsion 6 | 2 . 4 Treads 3 | 2 . 1 Leg . | . . . Wheel 3 | . . 3 Hover . | . . . Flight . | . . . Utility 3 | 1 1 1 Device 1 | . . 1 Storage 2 | 1 1 . Processor . | . . . Hackware . | . . . Protection . | . . . Artifact . | . . . Weapon 5 | 2 . 3 Energy Gun . | . . . Energy Cannon . | . . . Ballistic Gun 3 | 2 . 1 Ballistic Cannon . | . . . Launcher 1 | . . 1 Special Weapon . | . . . Impact Weapon . | . . . Slashing Weapon . | . . . Piercing Weapon . | . . . Special Melee Weapon 1 | . . 1 Unidentified Prototypes . | . . . Parts Lost 13 | . . 13 Power 1 | . . 1 Propulsion 4 | . . 4 Utility 3 | . . 3 Weapon 5 | . . 5 Highest Loss Streak 7 | . . 7 To Critical Strikes . | . . . Average Slot Usage (%) 90 | . 99 80 Engine 14 | . 14 14 Treads 18 | . 28 7 Wheel 6 | . . 15 Device 2 | . . 5 Storage 21 | . 27 15 Ballistic Gun 22 | . 28 14 Launcher 3 | . . 7 Peak Build Rating 8 | 6 7 8 Average Rating 6 | 5 6 6 On Entrance 4 | . 6 7 Naked Turns . | . . . Heaviest Build 15 | 13 15 15 Greatest Support 40 | 40 40 40 Greatest Overweight (x) 2 | . . 2 Average Overweight (x) . | . . . Largest Inventory Capacity 8 | 8 8 8 Average Capacity 7 | 7 8 7 Most Carried 6 | 4 6 6 Average Carried 3 | 2 5 2 Final Capacity 8 | 8 8 5 Final Carried 6 | 4 6 3 Class Distribution -------------------- 100% | Mutant Dominant Class ---------------- Mutant | -10/Materials Mutant | -10/Mines Resources | -11 -10 -10 ----------- Run | Yrd Mat Min Matter Collected 408 | 218 . 190 Remotely 37 | . . 37 Salvage Created 101 | . . 101 Parts 1 | . . 1 Haulers Intercepted . | . . . Recyclers Shooed . | . . . Parts Field Recycled . | . . . Retrieved Matter . | . . . Parts Self-Destructed . | . . . Prevented . | . . . Kills | -11 -10 -10 ------- Run | Yrd Mat Min Combat Hostiles Destroyed 6 | . . 6 Guns 5 | . . 5 AOE 1 | . . 1 Classes Destroyed 2 | . . 2 Demolisher 2 | . . 2 Assembled 4 | . . 4 Best Kill Streak 2 | . . 2 Combat Bots Only 2 | . . 2 Max Kills in Single Turn 1 | . . 1 Gunslinging . | . . . Exploded 1 | . . 1 Melee . | . . . Uniques/NPCs Destroyed . | . . . Combat | -11 -10 -10 -------- Run | Yrd Mat Min Hostile Shots Fired 83 | . 13 70 Missed 23 | . 3 20 Damage Taken 1336 | . 112 1224 Core 271 | . 24 247 Absorbed by Shields . | . . . Ignored by Resistances 370 | . 34 336 Core Remaining (%) 100 | 100 . . Volleys Fired 35 | . 1 34 Largest 2 | . 2 2 Hottest 50 | . 40 50 Shots Fired 45 | . 2 43 Gun 43 | . 2 41 Cannon . | . . . Launcher 2 | . . 2 Special . | . . . Kinetic 43 | . 2 41 Thermal . | . . . Explosive 2 | . . 2 Electromagnetic . | . . . Robot Hit Streak 10 | . . 10 Robot Miss Streak 3 | . 2 3 Penetration Max . | . . . Secondary Targets 1 | . . 1 Max Gunslinging Chain 1 | . . 1 Shots Hit Robots 33 | . . 33 Core Hits 19 | . . 19 Critical Kills . | . . . Critical Parts Destroyed . | . . . Critical Strikes . | . . . Melee Attacks . | . . . Impact . | . . . Slashing . | . . . Piercing . | . . . Sneak Attacks . | . . . Combat Hostiles . | . . . Follow-up Attacks . | . . . Damage Inflicted 362 | . . 362 Guns 296 | . . 296 Cannons . | . . . Explosions 56 | . . 56 Melee . | . . . Ramming 10 | . . 10 Kinetic 296 | . . 296 Thermal . | . . . Explosive 56 | . . 56 Electromagnetic . | . . . Impact . | . . . Slashing . | . . . Piercing . | . . . Highest Corruption 18 | . . 18 Average Corruption 3 | . . 3 Corruption Purged . | . . . Corruption Blocked . | . . . Effects 6 | . . 6 Matter Fused 2 | . . 2 Heat Flow Errors 1 | . . 1 Parts Rejected 1 | . . 1 Parts Fused 1 | . . 1 Alerts 1 | . . 1 Overload Shots . | . . . Overflow Damage . | . . . Projectiles . | . . . Explosions . | . . . Melee . | . . . Knockbacks . | . . . Impact . | . . . Kinetic . | . . . Secondary . | . . . Self-Inflicted Damage 4 | . . 4 Shots . | . . . Rammed 5 | . . 5 Targets Rammed 5 | . . 5 Kicked . | . . . Crushed . | . . . Highest Temperature 122 | . . 122 Average Temperature 41 | . . 41 Received Heat Transfer 139 | . 81 58 Siege Activations . | . . . Robots Corrupted . | . . . Combat Hostiles . | . . . Parts Fried . | . . . Impact Corruptions . | . . . Robots Melted . | . . . Combat Hostiles . | . . . Parts Melted . | . . . Heat Transferred . | . . . Parts Sabotaged . | . . . Parts Stolen . | . . . Parts Stripped . | . . . Power Chain Reactions . | . . . Alert | -11 -10 -10 ------- Run | Yrd Mat Min Peak Influence 44 | . 19 44 Initial 6 | . . 6 Average 12 | . 5 26 Maximum Alert Level . | . . . Low Security (%) 100 | 100 100 100 Level 1 . | . . . Level 2 . | . . . Level 3 . | . . . Level 4 . | . . . Level 5 . | . . . High Security . | . . . Max Security . | . . . Squads Dispatched . | . . . Investigation . | . . . Extermination . | . . . Reinforcement . | . . . Assault . | . . . Garrison . | . . . Intercept . | . . . Searches Triggered . | . . . Construction Impeded . | . . . Haulers Reinforced . | . . . Active Scanning Responses . | . . . Cargo Convoy Interrupts . | . . . Stealth | -11 -10 -10 --------- Run | Yrd Mat Min Distress Signals . | . . . Communications Jammed . | . . . Distress Signals . | . . . Times Spotted 26 | . 4 22 Peak Tracking Total 20 | . 4 20 Tactical Retreats 1 | . . 1 Traps | -11 -10 -10 ------- Run | Yrd Mat Min Traps Triggered . | . . . Indirectly . | . . . Trap Hack Attempts . | . . . Triggered . | . . . Disarmed . | . . . Reprogrammed . | . . . Reused . | . . . Traps Extracted . | . . . Installed . | . . . Triggered . | . . . Machines | -11 -10 -10 ---------- Run | Yrd Mat Min Machines Disabled . | . . . Max in Single Turn . | . . . Machines Repaired . | . . . Machines Dismantled . | . . . Machines Sabotaged . | . . . Overloaded Fab Kills . | . . . Hacking | -11 -10 -10 --------- Run | Yrd Mat Min Machines Accessed 2 | . 2 . Terminals 2 | . 2 . Fabricators . | . . . Repair Stations . | . . . Recycling Units . | . . . Scanalyzers . | . . . Garrison Access . | . . . Total Hacks 5 | . 5 . Successful 2 | . 2 . Failed 3 | . 3 . Catastrophic 1 | . 1 . Database Lockouts . | . . . Manual 1 | . 1 . Terminals 5 | . 5 . Fabricators . | . . . Repair Stations . | . . . Recycling Units . | . . . Scanalyzers . | . . . Garrison Access . | . . . Terminal Hacks 2 | . 2 . Registered Components 1 | . 1 . Zone Layout 1 | . 1 . Fabricator Hacks . | . . . Repair Station Hacks . | . . . Recycling Unit Hacks . | . . . Scanalyzer . | . . . Garrison Access Hacks . | . . . Unauthorized Hacks . | . . . Terminals . | . . . Fabricators . | . . . Repair Stations . | . . . Recycling Units . | . . . Scanalyzers . | . . . Garrison Access . | . . . Data Cores Recovered . | . . . Used . | . . . Hacking Detections . | . . . Full Trace Events . | . . . Feedback Events . | . . . Feedback Blocked . | . . . Robot Schematics Acquired . | . . . Robots Built . | . . . Authchips . | . . . Time . | . . . Total Robot Build Rating . | . . . Part Schematics Acquired . | . . . Parts Built . | . . . Authchips . | . . . Time . | . . . Total Part Build Rating . | . . . Parts Repaired . | . . . Time . | . . . Parts Recycled . | . . . Recycled Matter . | . . . Retrieved Matter . | . . . Retrieved Components . | . . . Parts Scanalyzed . | . . . Part Schematics Acquired . | . . . Parts Damaged . | . . . Bothacking | -11 -10 -10 ------------ Run | Yrd Mat Min Used RIF Installer . | . . . Robots Hacked . | . . . Non-combat . | . . . Combat . | . . . Robot Hacks Applied . | . . . Relay Couplers Released . | . . . Fabnet Peak Effective % . | . . . Robots Rewired . | . . . Allies Hacked . | . . . Hacks Repelled . | . . . Allies | -11 -10 -10 -------- Run | Yrd Mat Min Total Allies 3 | . . 3 Largest Group 3 | . . 3 Highest-Rated Group 40 | . . 40 Highest-Rated Ally 16 | . . 16 Total Orders . | . . . Ally Attacks 26 | . . 26 Total Damage 250 | . . 250 Kills 5 | . . 5 Allies Corrupted . | . . . Allies Melted . | . . . Intel | -11 -10 -10 ------- Run | Yrd Mat Min Robot Analysis Total . | . . . Derelict Logs Recovered . | . . . Drone Launches . | . . . Drone Recoveries . | . . . Exploration | -11 -10 -10 ------------- Run | Yrd Mat Min Turns Passed 686 | 81 346 259 Spaces Moved 407 | 49 205 153 Core 26 | 8 . 18 Treads 260 | 41 205 14 Legs . | . . . Wheels 121 | . . 121 Hover . | . . . Flight . | . . . Fastest Speed 50 | 50 160 100 Average Speed 138 | 142 160 109 Slowest Speed 160 | 160 160 160 Overloaded Moves . | . . . Propulsion Burnouts . | . . . Robots Hopped . | . . . Cave-ins Triggered . | . . . Exploration Rate (%) 26 | 5 33 40 Regions Visited 2 Branch Regions 1 Pre-discovered Areas . | . . . Known Exits Taken . | . . . Unknown Exits Taken 2 | 1 1 . Scrap Searched . | . . . Spaces Dug . | . . . Terrain Destroyed 18 | . . 18 Melee . | . . . Projectile . | . . . AOE 18 | . . 18 Terrain Rammed . | . . . Walls Destroyed . | . . . Machines Disabled . | . . . Actions | -11 -10 -10 --------- Run | Yrd Mat Min Total 485 | 58 221 206 Wait 14 | . 13 1 Move 405 | 48 204 153 Hop . | . . . Pick Up 8 | 4 2 2 Fast Attach 9 | 6 1 2 Attach 7 | . . 7 Detach . | . . . Swap 2 | . . 2 Drop . | . . . Fire 35 | . 1 34 Melee . | . . . Ram 5 | . . 5 Kick . | . . . Crush . | . . . Escape Stasis . | . . . Rewire . | . . . Trap . | . . . Miscellaneous . | . . . Route ------- -11/Scrapyard -10/Materials -10/Mines History --------- Turn | Location | Event 46 | -11/Scrapyard | Discovered new exit (range 14) 82 | -11/Scrapyard | Entered Materials 304 | -10/Materials | Discovered new exit (range 16) 311 | -10/Materials | Build established: Mutant 428 | -10/Materials | Entered Mines 429 | -10/Mines | Assembled infested the area 435 | -10/Mines | Met a Derelict bent on vengeance 449 | -10/Mines | Assisted by bots powering up and referring to "LRC-V3" 485 | -10/Mines | Core integrity fell below 50% 491 | -10/Mines | Core integrity fell below 20% 505 | -10/Mines | Lost 3 allies 534 | -10/Mines | Lost 7 parts (1p2n1u3w) 652 | -10/Mines | System corruption reached 10% 687 | -10/Mines | Destroyed by as-49481 with Assembled Maul Last Messages --------------- 00651_ Lgt. Assault Rifle destroyed. 00651_ System corrupted by crushing effect (+3). 00651_ Slammed into as-49481. 00658_ Com. Wheel destroyed. 00658_ Tractor Beam destroyed. 00658_ System corrupted by crushing effect (+2). 00658_ System corrupted by crushing effect (+1). 00667_ System corrupted: Mni. Grenade Launcher fused. 00675_ Sml. Storage Unit destroyed. 00675_ System corrupted by crushing effect (+4). 00681_ Acquired 10 matter. 00682_ K-01 Serf collects debris. 00683_ Acquired Lgt. Ion Engine. 00684_ as-49481 sneak attacks. 00685_ Mni. Grenade Launcher destroyed. 00685_ System corrupted by crushing effect (+1). 00686_ System corrupted: Lgt. Ion Engine rejected. Map ----- +----------------------------------------------------+ | ????????????????????????????????????????????? | | ????????????????????????????????????????????? | | ????????????????????????????????????????????? | | ????????????????????????????????????????????? | | ????????????????????????????????????????????? | | ????????????????????????????????????????????? | | ????????????????????????????????????????????? | | ????????????????????????????????????????????? | | ????????????????????????????????????????????? | | ??????????????????????????????????? #??????? | | ??????????????????????????????????? #?????? | | ????????????????????? ????????????? ?????? | | ????????????????????? ???????????? ?????? | | ????????????????????? ???????????? #?????? | | ?????????????????????? ????????????# #?????? | | ?????????????????????? ????????????# #?????? | | ?????????????????????? ???????????# #?????? | | ??????????????????????# ???????????# #?????? | | ??????????????????????# ???????????# #?????? | | ??????????????????????# ???????????# ####??? | | ??????????????????????# ??????????# ##?? | | ??????????????????????# ????????### ##? | | ??????????????????????#r ?????? ## #? | | ??????????????????????# #### #? | | ??????????????????????# a % #?? | | ??????????????????????# k@a%% #??? | | ??????????????????????###### # ##??? | | ????????????????????????# #???? | | ????????????????????????# %% #???? | | ????????????????????????# ## ####### #??? | | ????????????????????????# ?# #??##### #?? | | ????????????????????????# ?# #?## ### ##?? | | ????????????????????????# ## ### #?###??? | | ????????????????????????# ## #??????? | | ???????????????????????## ##??????? | | ??????????????????????## ##??????? | | ??????????????????????# ##?????? | | ??????????????????????# ##????? | | ??????????????????????## ##???? | | ???????????????????????## ## #???? | | ?#####??????????????????###### # #???? | | ## ###?????????????????????### ##???? | | ####????????????????????### ####????? | | ####???????????????????# #???????? | | ###?????????????????# #???????? | | ##????????????????# #???????? | | ##???????????????# #???????? | | ##??????????????# #???????? | | ## ##?????????????# #???????? | | #### ########??????# #???????? | +----------------------------------------------------+ Best States ------------- Heat Dissipation 25 Energy Generation 10 Energy Capacity 250 Matter Stores 300 Matter Capacity 400 Sight Range 16 Terrain Scan Density 10 Resistance: KI 20 Resistance: TH 20 Resistance: EX 20 Resistance: EM 20 Resistance: I 20 Resistance: S 20 Resistance: P 20 Evasion (%) 50 Recoil Reduction 2 Offensive Hacking 10 Item Schematics ----------------- None Robot Schematics ------------------ None Fabricated ------------ Nothing Alien Tech Used ----------------- None Achievements -------------- Hunted Challenges ------------ None Game ------ Seed FusionShadeLauncher Manual? 0 Play Time 00:08:24 Cumulative 10.0 hours Start 2025.03.07 @ 12:34:57 End 2025.03.07 @ 12:43:19 Sessions 1 Manual Loads 0 Difficulty Adventurer Special Mode None Game No. 28 Rogue 20 Adventurer 8 Explorer 0 Win Type - Total 0 Types 0/0/0/0/0/0/0/0/0 Lore% 3 Gallery% 16 Achievement% 13 Wizard Run 0 Options --------- Layout 1 ASCII 0 Keyboard 0 Movement Mouse Keybinds 0 Fullscreen 1 Font 32/SmallcapsGlow Map View 50x35 Zoom Use 0% Tactical HUD 1 Map Filters NONE Filters NONE Steam 1 RUN: bc00f264-398d-484f-9b4b-9100ba0bf2ba